Cogmind - Beta 11.1 @@@ ROGUE MODE // 2022.04.23 @ 16:59:49 Player: AnthonyDPS 2004 Result: Destroyed by Y-72 Warden with Railgun Performance ------------- Evolutions (9) 4500 Regions Visited (18) 3600 Robots Destroyed (6) 30 Value Destroyed (111) 111 Prototype IDs (13) 260 Alien Tech Used (0) 0 Bonus (455) 455 TOTAL SCORE: 8956 Bonus ------- Follower Combat Kills 7 Entered DSFs 500 Friendly Fire -52 Cogmind --------- Core Integrity 0/1600 Matter 15/300 Energy 43/100 System Corruption 19% Temperature Cool (0) Movement Core (50) Location -1/Access Parts ------- > --- POWER (2) -------- (None) > --- PROPULSION (7) --- Gyrokinetic Inverter Combat Linear Gravjet > --- UTILITY (14) ----- Advanced Signal Interpreter Graphene Brace > --- WEAPON (2) ------- (None) > --- INVENTORY (5) ---- Gyrokinetic Inverter Gyrokinetic Inverter Gyrokinetic Inverter Gyrokinetic Inverter Peak State ------------ > --- POWER ------------ Fission Core Improved Fusion Compressor > --- PROPULSION ------- Impulse Thruster Impulse Thruster Impulse Thruster Impulse Thruster Impulse Thruster Impulse Thruster > --- UTILITY ---------- Advanced Cooling System Small Storage Unit Enhanced Optical Array Spectral Analyzer Advanced Signal Interpreter Advanced Transmission Jammer ECM Suite Improved Force Field Hacking Suite Improved Hacking Suite Advanced System Shield > --- WEAPON ----------- (None) > --- INVENTORY -------- Field Propulsion Drive Field Propulsion Drive Impulse Thruster Matter Compressor Weight Redist. System Hardened Medium Armor Plating Point Defense Array [Rating: 112] Favorites ----------- Power Micro Nuclear Core Engine Light Deuterium Engine Power Core Micro Nuclear Core Reactor Light Quantum Reactor Propulsion Improved Flight Unit Wheel Armored Wheel Hover Unit Combat Linear Gravjet Flight Unit Improved Flight Unit Utility Small Storage Unit Device ECM Suite Storage Small Storage Unit Processor Enhanced Optical Array Hackware Hacking Suite Protection Improved Propulsion Shielding Weapon Datajack Energy Gun Spread Laser Energy Cannon HERF Cannon Ballistic Gun Shotgun Piercing Weapon Lance Special Melee Weapon Datajack Build | -11 -10 -9 -9 -8 -7 -7 -7 -6 -6 -5 -5 -4 -4 -4 -3 -2 -2 -1 ------- Run | Scr Mat Mat Sto Mat Fac Low Low Fac DSF Fac Ext Fac Upp Upp Res Res Tes Acc Slots Evolved 18 | . . 2 . 2 2 . . 2 . 2 . 2 . . 2 2 . 2 Power 1 | . . . . . . . . 1 . . . . . . . . . . Propulsion 5 | . . 1 . 1 1 . . . . 1 . . . . . 1 . . Utility 12 | . . 1 . 1 1 . . 1 . 1 . 2 . . 2 1 . 2 Weapon . | . . . . . . . . . . . . . . . . . . . Parts Attached 98 | 3 17 7 5 4 3 1 1 2 . 2 9 19 1 . 5 . 1 18 Power 14 | . 4 . . . 1 . . 1 . . 1 2 . . . . 1 4 Engine 4 | . 2 . . . . . . 1 . . 1 . . . . . . . Core 6 | . 2 . . . 1 . . . . . . 2 . . . . . 1 Reactor 4 | . . . . . . . . . . . . . . . . . 1 3 Propulsion 37 | 2 6 5 3 1 1 . . . . . 3 8 . . 1 . . 7 Treads . | . . . . . . . . . . . . . . . . . . . Leg . | . . . . . . . . . . . . . . . . . . . Wheel 7 | 2 4 . . . . . . . . . . 1 . . . . . . Hover 4 | . . 1 . . . . . . . . . . . . . . . 3 Flight 26 | . 2 4 3 1 1 . . . . . 3 7 . . 1 . . 4 Utility 36 | 1 2 1 1 3 1 1 . 1 . 2 5 9 1 . 4 . . 4 Device 17 | . 1 . . . 1 . . 1 . 1 2 6 . . 2 . . 3 Storage 1 | 1 . . . . . . . . . . . . . . . . . . Processor 4 | . . . 1 . . . . . . . 1 . 1 . 1 . . . Hackware 4 | . . . . . . . . . . . 2 2 . . . . . . Protection 10 | . 1 1 . 3 . 1 . . . 1 . 1 . . 1 . . 1 Artifact . | . . . . . . . . . . . . . . . . . . . Weapon 11 | . 5 1 1 . . . 1 . . . . . . . . . . 3 Energy Gun 4 | . 1 1 1 . . . . . . . . . . . . . . 1 Energy Cannon 1 | . . . . . . . . . . . . . . . . . . 1 Ballistic Gun 4 | . 4 . . . . . . . . . . . . . . . . . Ballistic Cannon . | . . . . . . . . . . . . . . . . . . . Launcher . | . . . . . . . . . . . . . . . . . . . Special Weapon . | . . . . . . . . . . . . . . . . . . . Impact Weapon . | . . . . . . . . . . . . . . . . . . . Slashing Weapon . | . . . . . . . . . . . . . . . . . . . Piercing Weapon 1 | . . . . . . . . . . . . . . . . . . 1 Special Melee Weapon 1 | . . . . . . . 1 . . . . . . . . . . . Unidentified Prototypes 7 | . . . 1 . 1 . . . . . . . . . 3 . . 2 Parts Lost 32 | . . . . . . . . . . . 10 1 . . . 2 3 16 Power 5 | . . . . . . . . . . . 2 . . . . . . 3 Propulsion 14 | . . . . . . . . . . . 4 . . . . 2 2 6 Utility 12 | . . . . . . . . . . . 3 1 . . . . 1 7 Weapon 1 | . . . . . . . . . . . 1 . . . . . . . Highest Loss Streak 7 | . . . . . . . . . . . 7 1 . . . 1 2 6 To Critical Strikes . | . . . . . . . . . . . . . . . . . . . Average Slot Usage (%) 73 | . 95 66 58 77 83 84 87 93 93 87 88 81 89 . 85 69 59 32 Engine 1 | . 3 . . . . . . 6 6 5 4 2 . . . . . . Core 5 | . 9 11 11 9 6 7 7 6 6 5 4 5 10 . 9 5 2 . Wheel 2 | . 27 . . . . . . . . . . 1 . . . . . . Flight 22 | . . 33 33 36 38 38 38 33 33 29 31 25 31 . 28 22 15 5 Device 9 | . 3 . . . 7 7 7 13 13 16 10 17 21 . 19 14 12 10 Storage 5 | . 14 11 11 9 7 7 7 6 6 5 5 5 5 . 4 4 2 . Processor 5 | . . . 1 9 7 7 7 6 6 5 5 5 5 . 9 8 8 6 Hackware 6 | . . . . . . . . . . . 6 16 15 . 14 13 13 7 Protection 5 | . 8 11 . 14 15 15 15 13 13 11 10 . . . . . . . Ballistic Gun 2 | . 21 . . . . . . . . . . . . . . . . . Special Melee Weapon 1 | . . . . . . . 2 6 6 5 4 . . . . . . . Naked Turns . | . . . . . . . . . . . . . . . . . . . Heaviest Build 39 | 5 21 13 13 19 22 22 23 28 28 30 30 39 39 38 39 39 35 23 Greatest Support 48 | 3 24 12 15 20 25 25 25 31 31 31 38 48 42 42 42 42 28 42 Greatest Overweight (x) 5 | 1 3 1 1 . . . . . . . 5 1 . . . . 1 5 Average Overweight (x) . | . . . . . . . . . . . . . . . . . . . Largest Inventory Capacity 8 | 8 8 8 8 8 8 8 8 8 8 8 8 8 8 8 8 8 8 5 Average Capacity 7 | 7 8 8 8 8 8 8 8 8 8 8 8 8 8 8 8 8 6 5 Most Carried 8 | 7 8 8 8 8 8 8 8 7 7 8 8 8 8 8 8 8 8 5 Average Carried 6 | 3 7 7 7 7 7 7 8 6 6 7 7 6 7 8 7 7 6 2 Final Capacity 8 | 8 8 8 8 8 8 8 8 8 8 8 8 8 8 8 8 8 5 5 Final Carried 8 | 7 8 8 8 8 8 8 8 6 7 8 6 8 8 8 8 8 5 4 Class Distribution -------------------- 37% | Sprinter 29% | Hacker-Sprinter 17% | Hacker-Mutant 15% | Mutant Dominant Class ---------------- Mutant | -10/Materials Mutant | -9/Materials Sprinter | -9/Storage Sprinter | -8/Materials Sprinter | -7/Factory Sprinter | -7/Lower Caves Sprinter | -7/Lower Caves Sprinter | -6/Factory Sprinter | -6/DSF Sprinter | -5/Factory Hacker-Sprinter | -5/Extension Hacker-Sprinter | -4/Factory Hacker-Sprinter | -4/Upper Caves Hacker-Sprinter | -4/Upper Caves Hacker-Sprinter | -3/Research Hacker-Sprinter | -2/Research Hacker-Mutant | -2/Testing Hacker-Mutant | -1/Access Resources | -11 -10 -9 -9 -8 -7 -7 -7 -6 -6 -5 -5 -4 -4 -4 -3 -2 -2 -1 ----------- Run | Scr Mat Mat Sto Mat Fac Low Low Fac DSF Fac Ext Fac Upp Upp Res Res Tes Acc Matter Collected 988 | 185 70 . 233 . . 96 24 . . . 172 26 95 . . . . 87 Remotely . | . . . . . . . . . . . . . . . . . . . Salvage Created 215 | . 128 . . . . . . . . . . . . . . . . 87 Parts 10 | . 10 . . . . . . . . . . . . . . . . . Haulers Intercepted . | . . . . . . . . . . . . . . . . . . . Recyclers Shooed . | . . . . . . . . . . . . . . . . . . . Parts Field Recycled . | . . . . . . . . . . . . . . . . . . . Retrieved Matter . | . . . . . . . . . . . . . . . . . . . Parts Self-Destructed . | . . . . . . . . . . . . . . . . . . . Prevented . | . . . . . . . . . . . . . . . . . . . Kills | -11 -10 -9 -9 -8 -7 -7 -7 -6 -6 -5 -5 -4 -4 -4 -3 -2 -2 -1 ------- Run | Scr Mat Mat Sto Mat Fac Low Low Fac DSF Fac Ext Fac Upp Upp Res Res Tes Acc Combat Hostiles Destroyed 5 | . 5 . . . . . . . . . . . . . . . . . Guns 5 | . 5 . . . . . . . . . . . . . . . . . Classes Destroyed 3 | . 2 . . . . . . . . . . . . . . . . 1 Recycler 1 | . . . . . . . . . . . . . . . . . . 1 Swarmer 3 | . 3 . . . . . . . . . . . . . . . . . Grunt 2 | . 2 . . . . . . . . . . . . . . . . . Best Kill Streak 3 | . 3 . . . . . . . . . . . . . . . . . Combat Bots Only 3 | . 3 . . . . . . . . . . . . . . . . . Max Kills in Single Turn 1 | . 1 . . . . . . . . . . . . . . . . 1 Gunslinging . | . . . . . . . . . . . . . . . . . . . Exploded . | . . . . . . . . . . . . . . . . . . . Melee . | . . . . . . . . . . . . . . . . . . . Uniques/NPCs Destroyed . | . . . . . . . . . . . . . . . . . . . Combat | -11 -10 -9 -9 -8 -7 -7 -7 -6 -6 -5 -5 -4 -4 -4 -3 -2 -2 -1 -------- Run | Scr Mat Mat Sto Mat Fac Low Low Fac DSF Fac Ext Fac Upp Upp Res Res Tes Acc Damage Taken 5550 | . 148 . 65 91 . 180 . . 23 . 944 226 9 . 63 343 383 3075 Core 2395 | . 23 . 54 34 . 51 . . . . 194 113 . . . 105 212 1609 Absorbed by Shields 167 | . . . . . . . . . . . 136 21 10 . . . . . Redirected to Shielding 100 | . . . . 9 . 17 . . . . 74 . . . . . . . Core Remaining (%) 90 | 100 90 . 86 93 . . 92 . 100 . 80 . . 90 100 . 78 . Volleys Fired 34 | . 13 . 17 . . . . . . . . . . . . . . 4 Largest 2 | . 2 . 1 . . . . . . . . . . . . . . 1 Hottest 65 | . 46 . 65 . . . . . . . . . . . . . . 65 Shots Fired 47 | . 26 . 17 . . . . . . . . . . . . . . 4 Gun 47 | . 26 . 17 . . . . . . . . . . . . . . 4 Cannon . | . . . . . . . . . . . . . . . . . . . Launcher . | . . . . . . . . . . . . . . . . . . . Special . | . . . . . . . . . . . . . . . . . . . Kinetic 26 | . 26 . . . . . . . . . . . . . . . . . Thermal 21 | . . . 17 . . . . . . . . . . . . . . 4 Explosive . | . . . . . . . . . . . . . . . . . . . Electromagnetic . | . . . . . . . . . . . . . . . . . . . Robot Hit Streak 4 | . 4 . . . . . . . . . . . . . . . . 2 Robot Miss Streak 7 | . 7 . . . . . . . . . . . . . . . . . Penetration Max . | . . . . . . . . . . . . . . . . . . . Secondary Targets 1 | . 1 . . . . . . . . . . . . . . . . . Max Gunslinging Chain 1 | . 1 . . . . . . . . . . . . . . . . . Shots Hit Robots 19 | . 14 . . . . . . . . . 2 . . . . . . 3 Core Hits 10 | . 9 . . . . . . . . . . . . . . . . 1 Critical Kills . | . . . . . . . . . . . . . . . . . . . Critical Parts Destroyed . | . . . . . . . . . . . . . . . . . . . Critical Strikes . | . . . . . . . . . . . . . . . . . . . Melee Attacks 4 | . . . . . . . . . . . 3 . . . . . . 1 Impact . | . . . . . . . . . . . . . . . . . . . Slashing . | . . . . . . . . . . . . . . . . . . . Piercing 1 | . . . . . . . . . . . . . . . . . . 1 Sneak Attacks 1 | . . . . . . . . . . . 1 . . . . . . . Combat Hostiles . | . . . . . . . . . . . . . . . . . . . Follow-up Attacks . | . . . . . . . . . . . . . . . . . . . Damage Inflicted 282 | . 157 . . . . . . . . . . . . . . . . 125 Guns 220 | . 157 . . . . . . . . . . . . . . . . 63 Cannons . | . . . . . . . . . . . . . . . . . . . Explosions . | . . . . . . . . . . . . . . . . . . . Melee 30 | . . . . . . . . . . . . . . . . . . 30 Ramming 32 | . . . . . . . . . . . . . . . . . . 32 Kinetic 157 | . 157 . . . . . . . . . . . . . . . . . Thermal 63 | . . . . . . . . . . . . . . . . . . 63 Explosive . | . . . . . . . . . . . . . . . . . . . Electromagnetic . | . . . . . . . . . . . . . . . . . . . Impact . | . . . . . . . . . . . . . . . . . . . Slashing . | . . . . . . . . . . . . . . . . . . . Piercing 30 | . . . . . . . . . . . . . . . . . . 30 Highest Corruption 19 | . . . . . 2 2 2 . . . . . 1 1 . . 1 19 Average Corruption 4 | . . . . . 2 2 2 . . . . . 1 1 . . 1 6 Corruption Purged . | . . . . . . . . . . . . . . . . . . . Corruption Blocked . | . . . . . . . . . . . . . . . . . . . Effects 24 | . . . . . . 4 2 . . . . . 1 . . . . 17 Message Errors 5 | . . . . . . 2 1 . . . . . . . . . . 2 Matter Fused 6 | . . . . . . 1 1 . . . . . 1 . . . . 3 Heat Flow Errors 2 | . . . . . . . . . . . . . . . . . . 2 Energy Discharges 4 | . . . . . . 1 . . . . . . . . . . . 3 Parts Rejected 1 | . . . . . . . . . . . . . . . . . . 1 Data Loss (minor) 2 | . . . . . . . . . . . . . . . . . . 2 Data Loss (major) 1 | . . . . . . . . . . . . . . . . . . 1 Alerts 2 | . . . . . . . . . . . . . . . . . . 2 Misdirections 1 | . . . . . . . . . . . . . . . . . . 1 Overload Shots . | . . . . . . . . . . . . . . . . . . . Overflow Damage . | . . . . . . . . . . . . . . . . . . . Projectiles . | . . . . . . . . . . . . . . . . . . . Explosions . | . . . . . . . . . . . . . . . . . . . Melee . | . . . . . . . . . . . . . . . . . . . Knockbacks . | . . . . . . . . . . . . . . . . . . . Impact . | . . . . . . . . . . . . . . . . . . . Kinetic . | . . . . . . . . . . . . . . . . . . . Secondary . | . . . . . . . . . . . . . . . . . . . Self-Inflicted Damage 15 | . . . . . . . . . . . . . . . . . . 15 Shots . | . . . . . . . . . . . . . . . . . . . Rammed 8 | . . . . . . . . . . . . . . . . . . 8 Targets Rammed 8 | . . . . . . . . . . . . . . . . . . 8 Kicked . | . . . . . . . . . . . . . . . . . . . Crushed . | . . . . . . . . . . . . . . . . . . . Highest Temperature 353 | . 12 . 353 8 3 9 . 3 . 77 300 349 21 5 277 2 . 186 Average Temperature 53 | . 5 . 145 1 1 2 . 2 . 24 60 140 7 3 202 2 . 92 Received Heat Transfer 641 | . 42 . 21 18 . 48 . . . . 278 . . . . 27 . 207 Siege Activations . | . . . . . . . . . . . . . . . . . . . Robots Corrupted . | . . . . . . . . . . . . . . . . . . . Combat Hostiles . | . . . . . . . . . . . . . . . . . . . Parts Fried . | . . . . . . . . . . . . . . . . . . . Impact Corruptions . | . . . . . . . . . . . . . . . . . . . Robots Melted . | . . . . . . . . . . . . . . . . . . . Combat Hostiles . | . . . . . . . . . . . . . . . . . . . Parts Melted . | . . . . . . . . . . . . . . . . . . . Heat Transferred 74 | . . . . . . . . . . . . . . . . . . 74 Parts Sabotaged . | . . . . . . . . . . . . . . . . . . . Parts Stolen . | . . . . . . . . . . . . . . . . . . . Parts Stripped . | . . . . . . . . . . . . . . . . . . . Power Chain Reactions . | . . . . . . . . . . . . . . . . . . . Missiles Intercepted . | . . . . . . . . . . . . . . . . . . . Alert | -11 -10 -9 -9 -8 -7 -7 -7 -6 -6 -5 -5 -4 -4 -4 -3 -2 -2 -1 ------- Run | Scr Mat Mat Sto Mat Fac Low Low Fac DSF Fac Ext Fac Upp Upp Res Res Tes Acc Peak Influence 576 | . 167 70 201 276 140 . . 158 125 110 360 576 . . 210 547 332 468 Initial 307 | . . 70 29 84 125 . . 158 110 65 53 154 . . 180 117 307 163 Average 184 | . 116 70 59 157 138 . . 158 115 78 89 347 . . 195 307 286 262 Maximum Alert Level 2 | . . . 1 1 . . . . . . 1 2 . . 1 2 1 2 Low Security (%) 64 | 100 100 100 92 85 100 . . 100 100 100 93 28 . . 78 44 14 24 Level 1 26 | . . . 7 14 . . . . . . 6 25 . . 21 23 85 67 Level 2 9 | . . . . . . . . . . . . 46 . . . 31 . 8 Level 3 . | . . . . . . . . . . . . . . . . . . . Level 4 . | . . . . . . . . . . . . . . . . . . . Level 5 . | . . . . . . . . . . . . . . . . . . . High Security . | . . . . . . . . . . . . . . . . . . . Max Security . | . . . . . . . . . . . . . . . . . . . Squads Dispatched 16 | . 1 . 2 1 1 . . . 1 . 2 1 . . 1 2 . 4 Investigation 4 | . . . . . . . . . . . 1 . . . . 1 . 2 Extermination 1 | . . . . . . . . . . . . . . . . . . 1 Reinforcement 9 | . 1 . . 1 1 . . . 1 . 1 1 . . 1 1 . 1 Assault 2 | . . . 2 . . . . . . . . . . . . . . . Garrison . | . . . . . . . . . . . . . . . . . . . Intercept . | . . . . . . . . . . . . . . . . . . . Searches Triggered 2 | . . . . . . . . . . . . 1 . . . . . 1 Construction Impeded 1 | . . . . . . . . . . . 1 . . . . . . . Haulers Reinforced . | . . . . . . . . . . . . . . . . . . . Active Scanning Responses . | . . . . . . . . . . . . . . . . . . . Cargo Convoy Interrupts . | . . . . . . . . . . . . . . . . . . . Stealth | -11 -10 -9 -9 -8 -7 -7 -7 -6 -6 -5 -5 -4 -4 -4 -3 -2 -2 -1 --------- Run | Scr Mat Mat Sto Mat Fac Low Low Fac DSF Fac Ext Fac Upp Upp Res Res Tes Acc Distress Signals 4 | . . . . . . . . . . . . 1 . . . 2 . 1 Communications Jammed 16 | . . . . . . . . . . . . . . . . . . 16 Distress Signals 16 | . . . . . . . . . . . . . . . . . . 16 Times Spotted 211 | . 8 . 14 18 1 16 . . 2 1 26 28 8 . 2 34 12 41 Peak Tracking Total 14 | . 3 . 8 6 . 6 . . 2 1 10 5 5 . 2 10 9 14 Tactical Retreats 40 | . . . 2 3 . 3 . . . . 6 7 2 . . 6 1 10 Traps | -11 -10 -9 -9 -8 -7 -7 -7 -6 -6 -5 -5 -4 -4 -4 -3 -2 -2 -1 ------- Run | Scr Mat Mat Sto Mat Fac Low Low Fac DSF Fac Ext Fac Upp Upp Res Res Tes Acc Traps Triggered 11 | . . . . . 1 . . . . . 8 2 . . . . . . Indirectly . | . . . . . . . . . . . . . . . . . . . Trap Hack Attempts . | . . . . . . . . . . . . . . . . . . . Triggered . | . . . . . . . . . . . . . . . . . . . Disarmed . | . . . . . . . . . . . . . . . . . . . Reprogrammed . | . . . . . . . . . . . . . . . . . . . Reused . | . . . . . . . . . . . . . . . . . . . Traps Extracted . | . . . . . . . . . . . . . . . . . . . Installed . | . . . . . . . . . . . . . . . . . . . Triggered . | . . . . . . . . . . . . . . . . . . . Machines | -11 -10 -9 -9 -8 -7 -7 -7 -6 -6 -5 -5 -4 -4 -4 -3 -2 -2 -1 ---------- Run | Scr Mat Mat Sto Mat Fac Low Low Fac DSF Fac Ext Fac Upp Upp Res Res Tes Acc Machines Disabled . | . . . . . . . . . . . . . . . . . . . Max in Single Turn . | . . . . . . . . . . . . . . . . . . . Garrison Access 3 | . . . . 1 . . . . . . . . . . . 1 1 . Machines Sabotaged . | . . . . . . . . . . . . . . . . . . . Garrisons Compromised . | . . . . . . . . . . . . . . . . . . . Overloaded Fab Kills . | . . . . . . . . . . . . . . . . . . . Hacking | -11 -10 -9 -9 -8 -7 -7 -7 -6 -6 -5 -5 -4 -4 -4 -3 -2 -2 -1 --------- Run | Scr Mat Mat Sto Mat Fac Low Low Fac DSF Fac Ext Fac Upp Upp Res Res Tes Acc Machines Accessed 33 | . 2 1 2 3 . 1 . 1 . 2 6 4 . . 1 2 5 3 Terminals 21 | . 2 . 2 1 . . . 1 . 2 5 2 . . 1 1 3 1 Fabricators 1 | . . . . . . . . . . . . . . . . . . 1 Repair Stations . | . . . . . . . . . . . . . . . . . . . Recycling Units 5 | . . 1 . 1 . . . . . . 1 2 . . . . . . Scanalyzers 1 | . . . . . . . . . . . . . . . . . 1 . Garrison Access 4 | . . . . 1 . . . . . . . . . . . 1 1 1 Total Hacks 66 | . 5 2 4 5 . 1 . 2 . 4 14 6 . . 1 6 9 7 Successful 40 | . 5 2 2 4 . 1 . 1 . 1 9 3 . . 1 3 6 2 Failed 26 | . . . 2 1 . . . 1 . 3 5 3 . . . 3 3 5 Catastrophic 3 | . . . . . . . . . . . 1 . . . . . . 2 Database Lockouts . | . . . . . . . . . . . . . . . . . . . Manual . | . . . . . . . . . . . . . . . . . . . Terminals 43 | . 5 . 4 2 . . . 2 . 4 10 3 . . 1 4 5 3 Fabricators 1 | . . . . . . . . . . . . . . . . . . 1 Repair Stations . | . . . . . . . . . . . . . . . . . . . Recycling Units 11 | . . 2 . 2 . . . . . . 4 3 . . . . . . Scanalyzers 3 | . . . . . . . . . . . . . . . . . 3 . Garrison Access 7 | . . . . 1 . . . . . . . . . . . 2 1 3 Terminal Hacks 27 | . 5 . 2 1 . 1 . 1 . 1 6 2 . . 1 2 4 1 Record 6 | . . . 1 . . . . . . 1 1 . . . . 1 1 1 Robot Analysis 1 | . . . . . . . . . . . 1 . . . . . . . Prototype ID Bank 3 | . . . 1 1 . . . . . . 1 . . . . . . . Open Door 4 | . . . . . . 1 . . . . 3 . . . . . . . Open DSF 1 | . . . . . . . . 1 . . . . . . . . . . Scanalyzer Index 1 | . . . . . . . . . . . . 1 . . . . . . Unreport Threat 2 | . . . . . . . . . . . . . . . . 1 1 . Locate Traps 1 | . . . . . . . . . . . . 1 . . . . . . Dispatch Records 1 | . 1 . . . . . . . . . . . . . . . . . Maintenance Status 1 | . 1 . . . . . . . . . . . . . . . . . Hauler Manifests 1 | . 1 . . . . . . . . . . . . . . . . . Registered Components 1 | . 1 . . . . . . . . . . . . . . . . . Zone Layout 4 | . 1 . . . . . . . . . . . . . 1 . 2 . Fabricator Hacks 1 | . . . . . . . . . . . . . . . . . . 1 Build 1 | . . . . . . . . . . . . . . . . . . 1 Repair Station Hacks . | . . . . . . . . . . . . . . . . . . . Recycling Unit Hacks 8 | . . 2 . 2 . . . . . . 3 1 . . . . . . Process 3 | . . 1 . 1 . . . . . . 1 . . . . . . . Report Inventory 3 | . . . . 1 . . . . . . 1 1 . . . . . . Retrieve Matter 2 | . . 1 . . . . . . . . 1 . . . . . . . Scanalyzer 1 | . . . . . . . . . . . . . . . . . 1 . Insert Component 1 | . . . . . . . . . . . . . . . . . 1 . Garrison Access Hacks 3 | . . . . 1 . . . . . . . . . . . 1 1 . Seal Access 3 | . . . . 1 . . . . . . . . . . . 1 1 . Unauthorized Hacks . | . . . . . . . . . . . . . . . . . . . Terminals . | . . . . . . . . . . . . . . . . . . . Fabricators . | . . . . . . . . . . . . . . . . . . . Repair Stations . | . . . . . . . . . . . . . . . . . . . Recycling Units . | . . . . . . . . . . . . . . . . . . . Scanalyzers . | . . . . . . . . . . . . . . . . . . . Garrison Access . | . . . . . . . . . . . . . . . . . . . Data Cores Recovered . | . . . . . . . . . . . . . . . . . . . Used . | . . . . . . . . . . . . . . . . . . . Hacking Detections 21 | . . . 2 2 . . . 1 . 2 4 3 . . . 1 3 3 Full Trace Events 4 | . . . . . . . . . . . 1 . . . . 1 . 2 Feedback Events 1 | . . . . . . . . . . . . . . . . . . 1 Corruption 1 | . . . . . . . . . . . . . . . . . . 1 Feedback Blocked . | . . . . . . . . . . . . . . . . . . . Robot Schematics Acquired . | . . . . . . . . . . . . . . . . . . . Robots Built 1 | . . . . . . . . . . . . . . . . . . 1 Authchips . | . . . . . . . . . . . . . . . . . . . Time 27 | . . . . . . . . . . . . . . . . . . 27 Total Robot Build Rating 1 | . . . . . . . . . . . . . . . . . . 1 Part Schematics Acquired . | . . . . . . . . . . . . . . . . . . . Parts Built . | . . . . . . . . . . . . . . . . . . . Authchips . | . . . . . . . . . . . . . . . . . . . Time . | . . . . . . . . . . . . . . . . . . . Total Part Build Rating . | . . . . . . . . . . . . . . . . . . . Parts Repaired . | . . . . . . . . . . . . . . . . . . . Time . | . . . . . . . . . . . . . . . . . . . Parts Recycled . | . . . . . . . . . . . . . . . . . . . Recycled Matter 38 | . . 20 . 12 . . . . . . 6 . . . . . . . Retrieved Matter 26 | . . 20 . . . . . . . . 6 . . . . . . . Retrieved Components . | . . . . . . . . . . . . . . . . . . . Parts Scanalyzed 1 | . . . . . . . . . . . . . . . . . 1 . Part Schematics Acquired . | . . . . . . . . . . . . . . . . . . . Parts Damaged . | . . . . . . . . . . . . . . . . . . . Bothacking | -11 -10 -9 -9 -8 -7 -7 -7 -6 -6 -5 -5 -4 -4 -4 -3 -2 -2 -1 ------------ Run | Scr Mat Mat Sto Mat Fac Low Low Fac DSF Fac Ext Fac Upp Upp Res Res Tes Acc Used RIF Installer . | . . . . . . . . . . . . . . . . . . . Robots Hacked 2 | . . . . . . . . . . . 2 . . . . . . . Non-combat 2 | . . . . . . . . . . . 2 . . . . . . . Combat . | . . . . . . . . . . . . . . . . . . . Robot Hacks Applied 2 | . . . . . . . . . . . 2 . . . . . . . parse_system 1 | . . . . . . . . . . . 1 . . . . . . . no_distress 1 | . . . . . . . . . . . 1 . . . . . . . Relay Couplers Released . | . . . . . . . . . . . . . . . . . . . Fabnet Peak Effective % . | . . . . . . . . . . . . . . . . . . . Robots Rewired . | . . . . . . . . . . . . . . . . . . . Allies Hacked . | . . . . . . . . . . . . . . . . . . . Hacks Repelled . | . . . . . . . . . . . . . . . . . . . Allies | -11 -10 -9 -9 -8 -7 -7 -7 -6 -6 -5 -5 -4 -4 -4 -3 -2 -2 -1 -------- Run | Scr Mat Mat Sto Mat Fac Low Low Fac DSF Fac Ext Fac Upp Upp Res Res Tes Acc Total Allies 6 | . . . 2 . . . . . . . 3 . . . . . . 1 Largest Group 2 | . . . 2 1 . . . . . . 2 . . . . . . . Highest-Rated Group 70 | . . . 62 31 . . . . . . 70 . . . . . . . Highest-Rated Ally 39 | . . . 31 31 . . . . . . 39 . . . . . . . Total Orders . | . . . . . . . . . . . . . . . . . . . Ally Attacks 21 | . . . 2 4 . . . . . . 15 . . . . . . . Total Damage 456 | . . . 43 82 . . . . . . 331 . . . . . . . Kills 3 | . . . . 1 . . . . . . 2 . . . . . . . Allies Corrupted . | . . . . . . . . . . . . . . . . . . . Allies Melted . | . . . . . . . . . . . . . . . . . . . Intel | -11 -10 -9 -9 -8 -7 -7 -7 -6 -6 -5 -5 -4 -4 -4 -3 -2 -2 -1 ------- Run | Scr Mat Mat Sto Mat Fac Low Low Fac DSF Fac Ext Fac Upp Upp Res Res Tes Acc Robot Analysis Total 1 | . . . . . . . . . . . 1 . . . . . . . Derelict Logs Recovered 3 | . . . . . . . 1 . . . . . 2 . . . . . Drone Launches . | . . . . . . . . . . . . . . . . . . . Drone Recoveries . | . . . . . . . . . . . . . . . . . . . Exploration | -11 -10 -9 -9 -8 -7 -7 -7 -6 -6 -5 -5 -4 -4 -4 -3 -2 -2 -1 ------------- Run | Scr Mat Mat Sto Mat Fac Low Low Fac DSF Fac Ext Fac Upp Upp Res Res Tes Acc Turns Passed 3928 | 58 385 24 249 106 83 300 99 9 25 126 793 414 110 6 33 216 219 673 Spaces Moved 8103 | 51 284 35 443 306 283 1061 359 16 53 387 1286 849 359 24 90 617 380 1220 Core 170 | 51 7 . . . . . . . . . 1 . . . . . . 111 Treads . | . . . . . . . . . . . . . . . . . . . Legs . | . . . . . . . . . . . . . . . . . . . Wheels 284 | . 277 . . . . . . . . . . 7 . . . . . . Hover 54 | . . . . . . . . . . . . . . . . . . 54 Flight 7595 | . . 35 443 306 283 1061 359 16 53 387 1285 842 359 24 90 617 380 1055 Fastest Speed 23 | 50 80 29 29 31 27 27 27 27 27 27 25 25 25 25 23 23 30 27 Average Speed 34 | 93 90 33 29 31 27 27 27 27 27 27 26 31 25 25 24 26 55 44 Slowest Speed 300 | 100 200 112 109 31 27 27 27 27 27 27 250 102 25 25 25 30 112 300 Overloaded Moves 127 | . . . . . . . . . . . . . . . . . . 127 Propulsion Burnouts . | . . . . . . . . . . . . . . . . . . . Robots Hopped 92 | . . . 7 4 5 1 . . 2 . 17 10 . . 1 15 6 24 Cave-ins Triggered . | . . . . . . . . . . . . . . . . . . . Exploration Rate (%) 30 | 3 45 6 53 32 5 81 43 1 46 8 82 22 53 6 2 19 53 21 Regions Visited 18 Branch Regions 7 Pre-discovered Areas . | . . . . . . . . . . . . . . . . . . . Known Exits Taken 6 | . . . . . . . . 1 . . . . 1 1 1 1 1 . Unknown Exits Taken 11 | 1 1 1 1 1 1 1 1 . . 1 1 1 . . . . . . Scrap Searched 9 | . . . . . . 6 1 . . . . . 2 . . . . . Spaces Dug . | . . . . . . . . . . . . . . . . . . . Terrain Destroyed . | . . . . . . . . . . . . . . . . . . . Melee . | . . . . . . . . . . . . . . . . . . . Projectile . | . . . . . . . . . . . . . . . . . . . AOE . | . . . . . . . . . . . . . . . . . . . Terrain Rammed . | . . . . . . . . . . . . . . . . . . . Walls Destroyed . | . . . . . . . . . . . . . . . . . . . Machines Disabled . | . . . . . . . . . . . . . . . . . . . Actions | -11 -10 -9 -9 -8 -7 -7 -7 -6 -6 -5 -5 -4 -4 -4 -3 -2 -2 -1 --------- Run | Scr Mat Mat Sto Mat Fac Low Low Fac DSF Fac Ext Fac Upp Upp Res Res Tes Acc Total 9108 | 60 385 50 539 312 284 1074 359 19 60 409 1715 980 378 23 99 659 381 1322 Wait 709 | . 52 . 75 2 1 7 . 2 9 12 322 83 17 . 2 48 2 75 Move 7903 | 50 283 34 428 297 272 1058 358 15 48 386 1252 828 358 23 87 586 367 1173 Hop 90 | . . . 7 4 5 1 . . 2 . 16 10 . . 1 15 6 23 Pick Up 62 | 7 5 . 1 3 2 3 . . 1 6 3 11 1 . . 4 1 14 Fast Attach 34 | 3 8 1 2 2 . . 1 . . . 3 7 . . 3 . 1 3 Attach 46 | . 3 6 1 2 3 . . 2 . 2 3 7 . . 2 . . 15 Detach 18 | . 5 6 2 . 1 . . . . . . 2 . . 2 . . . Swap 18 | . 6 . 2 . . 1 . . . . 3 5 1 . . . . . Drop 57 | . 10 3 4 2 . 4 . . . 3 3 9 1 . 2 6 4 6 Fire 34 | . 13 . 17 . . . . . . . . . . . . . . 4 Melee 4 | . . . . . . . . . . . 3 . . . . . . 1 Ram 8 | . . . . . . . . . . . . . . . . . . 8 Kick . | . . . . . . . . . . . . . . . . . . . Crush . | . . . . . . . . . . . . . . . . . . . Escape Stasis 125 | . . . . . . . . . . . 107 18 . . . . . . Rewire . | . . . . . . . . . . . . . . . . . . . Trap . | . . . . . . . . . . . . . . . . . . . Miscellaneous . | . . . . . . . . . . . . . . . . . . . Route ------- -11/Scrapyard -10/Materials -9/Materials -9/Storage -8/Materials -7/Factory -7/Lower Caves -7/Lower Caves -6/Factory -6/DSF -5/Factory (discovered 2 exits: Upp / *Ext) -5/Extension (discovered 2 exits: *Fac / [*Cet]) -4/Factory -4/Upper Caves -4/Upper Caves -3/Research -2/Research -2/Testing -1/Access History --------- Turn | Location | Event 11 | -11/Scrapyard | Discovered new exit (range 16) 59 | -11/Scrapyard | Entered Materials 340 | -10/Materials | Build established: Mutant 424 | -10/Materials | Discovered new exit (range 11) 444 | -10/Materials | Entered another Materials area 444 | -9/Materials | Evolved 2 slots: Propulsion x1, Utility x1 452 | -9/Materials | Discovered new exit (range 15) 468 | -9/Materials | Entered Storage 698 | -9/Storage | Discovered new exit (range 15) 702 | -9/Storage | Met a pair of Derelict thieves 717 | -9/Storage | Entered Materials 717 | -8/Materials | Accompanied by 1 ally 717 | -8/Materials | Evolved 2 slots: Propulsion x1, Utility x1 822 | -8/Materials | Discovered new exit (range 4) 823 | -8/Materials | Entered Factory 823 | -7/Factory | Evolved 2 slots: Propulsion x1, Utility x1 859 | -7/Factory | Build established: Sprinter 896 | -7/Factory | Discovered new exit (range 17) 906 | -7/Factory | Entered Lower Caves 1087 | -7/Lower Caves | Encountered a Warlord checkpoint 1192 | -7/Lower Caves | Discovered new exit (range 16) 1205 | -7/Lower Caves | Attracted the attention of an 0b10 checkpoint 1206 | -7/Lower Caves | Entered another Lower Caves area 1283 | -7/Lower Caves | Discovered new exit (range 11) 1305 | -7/Lower Caves | Entered Factory 1305 | -6/Factory | Evolved 2 slots: Power x1, Utility x1 1312 | -6/Factory | Identified exit to DSF 1314 | -6/Factory | Entered DSF 1324 | -6/DSF | Discovered new exit (range 18) 1339 | -6/DSF | Entered Factory 1339 | -5/Factory | Evolved 2 slots: Propulsion x1, Utility x1 1340 | -5/Factory | Identified exit to Upper Caves 1462 | -5/Factory | Discovered new exit (range 14) 1465 | -5/Factory | Entered Extension 1738 | -5/Extension | Spotted B-75 Beast 1804 | -5/Extension | Rescued a captive Derelict 1818 | -5/Extension | Rescued a captive Derelict 2170 | -5/Extension | Spotted B-75 Beast 2177 | -5/Extension | Rescued a captive Derelict 2179 | -5/Extension | Rescued a captive Derelict 2246 | -5/Extension | Discovered new exit (range 10) 2247 | -5/Extension | Discovered new exit (range 6) 2258 | -5/Extension | Entered Factory 2258 | -4/Factory | Evolved 2 slots: Utility x2 2270 | -4/Factory | Lost 7 parts (1p4n2u) 2508 | -4/Factory | Search patrols dispatched 2667 | -4/Factory | Discovered new exit (range 20) 2672 | -4/Factory | Entered Upper Caves 2677 | -4/Upper Caves | Learned Research security intel 2721 | -4/Upper Caves | Build established: Hacker-Sprinter 2767 | -4/Upper Caves | Learned Research non-interactive machine intel 2774 | -4/Upper Caves | Discovered new exit (range 17) 2780 | -4/Upper Caves | Attracted the attention of an 0b10 checkpoint 2782 | -4/Upper Caves | Identified exit to Upper Caves 2782 | -4/Upper Caves | Entered another Upper Caves area 2786 | -4/Upper Caves | Discovered new exit (range 8) 2788 | -4/Upper Caves | Identified exit to Research 2788 | -4/Upper Caves | Entered Research 2788 | -3/Research | Evolved 2 slots: Utility x2 2790 | -3/Research | Loaded intel: 88 non-interactive machine locations 2800 | -3/Research | Found Prototype Processor 2800 | -3/Research | Identified Spectral Analyzer 2803 | -3/Research | Discovered new exit (range 4) 2804 | -3/Research | Identified exit to Research 2808 | -3/Research | Found Prototype Device 2808 | -3/Research | Identified Exp. Shield Generator 2821 | -3/Research | Entered another Research area 2821 | -2/Research | Evolved 2 slots: Propulsion x1, Utility x1 3021 | -2/Research | Discovered new exit (range 20) 3037 | -2/Research | Identified exit to Testing 3037 | -2/Research | Entered Testing 3197 | -2/Testing | Spotted PL-RG2YPLLKZ5 3242 | -2/Testing | Discovered new exit (range 21) 3255 | -2/Testing | Identified exit to Access 3256 | -2/Testing | Entered Access 3256 | -1/Access | Evolved 2 slots: Utility x2 3545 | -1/Access | Search patrols dispatched 3726 | -1/Access | Fabricated R-06 Scavenger (x1) 3809 | -1/Access | System corruption reached 10% 3851 | -1/Access | Core integrity fell below 50% 3920 | -1/Access | Core integrity fell below 20% 3929 | -1/Access | Destroyed by Y-72 Warden with Railgun Last Messages --------------- 03906_ Imp. Fusion Compressor destroyed. 03906_ Imp. Hacking Suite destroyed. 03907_ Slug penetrates Wall. 03912_ System corrupted: Matter fused (-7). 03913_ Slug penetrates Wall. 03914_ Cld. Linear Gravjet destroyed. 03918_ Penetrated by Slug. 03918_ Slug penetrates Wall. 03919_ Penetrated by Slug. 03920_ Slug penetrates Wall. 03922_ Penetrated by Slug. 03922_ Slug penetrates Wall. 03925_ U-05 Engineer lays Concrete. 03925_ Penetrated by Slug. 03925_ Slug penetrates Wall. 03926_ Penetrated by Slug. 03926_ Slug penetrates Wall. 03926_ U-05 Engineer lays Concrete. 03928_ Penetrated by Slug. 03928_ U-05 Engineer lays Concrete. Map ----- +----------------------------------------------------+ | ????????????????????????????????????????# ???? | | ????????????????????????????????????????# ???? | | ????????????????????????????????????????# ???? | | ??????????????????????????????????????### ###? | | ??????????????????????????????????????# * #? | | ??????????????????????????????????##### #? | | ????????????????????????????????? ! #? | | ?????????????????????????????????? #? | | ???????????????????????????????????? #? | | ?????????????????????????????????????? ! #? | | ???????????????????????????????????????? #? | | ?????????????????????????????????????????? #? | | ???????????????????????????????????????????? #? | | ?????????????????????????????????????????????# #?? | | ?????????##########???????????????############ ### | | ?????????# " #???????######### / | | ?????????# """ # ?????# # ##### | | ?????????# """ # ##### # " [#???# | | ?????????# " # # """ #???# | | ?????????# # + """ #???# | | ?????????# # = # " #???# | | ?????????# #???##### # #???# | | ?????????# #???????# # [ #???# | | ?????????# #???????## ################ | | #################/########## | | # """T""" # @ ############ | | # """ """ # A #??????????? | | # # #??????????? | | # = # u #??????????? | | # # ############ | | # # = =h % | | ##########+### = h | | ??????# =g Y | | ####### g #######+### | | = # g #?? ?????# | | # ########## A #?? ????# | | # ### ##????????# #??? " ??# | | ! # ##########/###???????# #?????"" ?# | | # # #???????# #? """ # | | # # #???????# # " / | | + + #???????# ## ## | | # # #???????# ## ?# | | # # #???????# ## ??# | | + ##############???????# #########??# | | ##### #???????############## ############/ | | #???# #???????# # # | | #??## ##??????# ! # # | | ########## #??????# # # | | ???# #??????# # # | | ???# #??????# # # | +----------------------------------------------------+ Best States ------------- Heat Dissipation 83 Energy Generation 48 Energy Capacity 400 Matter Stores 300 Matter Capacity 300 Sight Range 22 Terrain Scan Density 10 ECM Strength 1 Jamming Range 16 Additional Mass Support 9 Armor Coverage 225 Propulsion Shielding 66 Evasion (%) 65 Offensive Hacking 32 Defensive Hacking 14 Item Schematics ----------------- None Robot Schematics ------------------ None Fabricated ------------ R-06 Scavenger | x1 | -1/Access | Preloaded Alien Tech Used ----------------- None Achievements -------------- Can't Catch Me Denied? Leap Before You Look Slippery One Total Silence Challenges ------------ None Game ------ Seed PoweredSchematicSpear Manual? 0 Play Time 02:13:01 Cumulative 27.8 hours Start 2022.04.23 @ 14:44:17 End 2022.04.23 @ 16:59:49 Sessions 1 Manual Loads 0 Difficulty Rogue Special Mode None Game No. 46 Rogue 46 Adventurer 0 Explorer 0 Win Type - Total 0 Types 0/0/0/0/0/0/0/0/0 Lore% 23 Gallery% 29 Achievement% 24 Wizard Run 0 Options --------- ASCII 0 Keyboard 0 Movement Numpad Keybinds 0 Fullscreen 2 Font 18/SmallcapsGlow Map View 76x50 Tactical HUD 1 Map Filters NONE Filters NONE Steam 1 RUN: fe886ec2-841a-4c66-99dc-ed641d7fdcd3